[Event "Late-Titled-Tuesday-Blitz-June-04-2024"]
[Site "Chess.com"]
[Date "2024.06.04"]
[Round "5"]
[White "PotapovaM"]
[Black "GMG"]
[Result "1-0"]
[WhiteElo "2562"]
[BlackElo "2703"]
[TimeControl "180+1"]
[EndTime "14:55:31 PDT"]
[Termination "PotapovaM won on time"]

1. e4 {[%clk 0:02:58.8]} 1... c5 {[%clk 0:03:00.5]} 2. Nf3 {[%clk 0:02:56.5]}
2... Nc6 {[%clk 0:03:01]} 3. Bb5 {[%clk 0:02:55.5]} 3... e6 {[%clk 0:03:01.4]}
4. O-O {[%clk 0:02:54.5]} 4... Nge7 {[%clk 0:03:01.3]} 5. Re1 {[%clk 0:02:51.6]}
5... b6 {[%clk 0:03:01.3]} 6. d4 {[%clk 0:02:49.8]} 6... cxd4 {[%clk 0:03:02.2]}
7. Nxd4 {[%clk 0:02:49.7]} 7... Bb7 {[%clk 0:03:02.6]} 8. Nc3 {[%clk 0:02:46.2]}
8... Ng6 {[%clk 0:02:55]} 9. Nxc6 {[%clk 0:02:40.2]} 9... dxc6 {[%clk
0:02:52.4]} 10. Bf1 {[%clk 0:02:36.3]} 10... Bb4 {[%clk 0:02:45.6]} 11. Qf3
{[%clk 0:02:28.2]} 11... Qf6 {[%clk 0:02:40.4]} 12. Qxf6 {[%clk 0:02:22.1]}
12... gxf6 {[%clk 0:02:41.3]} 13. Bd2 {[%clk 0:02:22.5]} 13... O-O-O {[%clk
0:02:32.7]} 14. Rad1 {[%clk 0:02:20.2]} 14... h5 {[%clk 0:02:20.2]} 15. a3
{[%clk 0:02:20]} 15... Bd6 {[%clk 0:02:13.4]} 16. Be3 {[%clk 0:02:07.5]} 16...
Be5 {[%clk 0:02:09.2]} 17. a4 {[%clk 0:01:47.8]} 17... c5 {[%clk 0:01:58.2]} 18.
f3 {[%clk 0:01:36.4]} 18... Bxc3 {[%clk 0:01:51.3]} 19. bxc3 {[%clk 0:01:35.7]}
19... a5 {[%clk 0:01:51.1]} 20. Rb1 {[%clk 0:01:33.6]} 20... Kc7 {[%clk
0:01:49]} 21. Rb2 {[%clk 0:01:33]} 21... Bc6 {[%clk 0:01:45.5]} 22. Reb1 {[%clk
0:01:32.7]} 22... Rb8 {[%clk 0:01:45.5]} 23. Ra1 {[%clk 0:01:26.8]} 23... Rhd8
{[%clk 0:01:38.5]} 24. Kf2 {[%clk 0:01:23.7]} 24... h4 {[%clk 0:01:22.3]} 25. g3
{[%clk 0:01:21.2]} 25... hxg3+ {[%clk 0:01:21.2]} 26. hxg3 {[%clk 0:01:22.1]}
26... Rh8 {[%clk 0:01:17.2]} 27. Bg2 {[%clk 0:01:21.7]} 27... Ne5 {[%clk
0:00:59.1]} 28. Bf4 {[%clk 0:01:00.1]} 28... Rbd8 {[%clk 0:00:57.1]} 29. Rab1
{[%clk 0:00:57.8]} 29... Rb8 {[%clk 0:00:46.3]} 30. Ra2 {[%clk 0:00:57.9]} 30...
Bb7 {[%clk 0:00:38.2]} 31. Rab2 {[%clk 0:00:55.6]} 31... Ba6 {[%clk 0:00:36.6]}
32. g4 {[%clk 0:00:53]} 32... Kc6 {[%clk 0:00:31.1]} 33. g5 {[%clk 0:00:52.9]}
33... Rb7 {[%clk 0:00:30.6]} 34. gxf6 {[%clk 0:00:52.4]} 34... Nc4 {[%clk
0:00:29.8]} 35. Ra2 {[%clk 0:00:52.6]} 35... Rd7 {[%clk 0:00:27.7]} 36. Raa1
{[%clk 0:00:49.6]} 36... e5 {[%clk 0:00:21.3]} 37. Bg5 {[%clk 0:00:41.1]} 37...
Rg8 {[%clk 0:00:12.6]} 38. f4 {[%clk 0:00:41.7]} 38... exf4 {[%clk 0:00:12.1]}
39. e5+ {[%clk 0:00:41.1]} 39... Kc7 {[%clk 0:00:09.7]} 40. Bxf4 {[%clk
0:00:41.2]} 40... Rxg2+ {[%clk 0:00:05.1]} 41. Kxg2 {[%clk 0:00:40.8]} 41...
Bb7+ {[%clk 0:00:05.7]} 42. Kg3 {[%clk 0:00:39.1]} 42... Kc6 {[%clk 0:00:02.3]}
43. Rd1 {[%clk 0:00:38.3]} 43... Bc8 {[%clk 0:00:02.7]} 44. Rxd7 {[%clk
0:00:27]} 44... Bxd7 {[%clk 0:00:03.6]} 45. Rd1 {[%clk 0:00:25.3]} 45... Be6
{[%clk 0:00:03.8]} 46. Rd8 {[%clk 0:00:25.6]} 46... Kc7 {[%clk 0:00:03.5]} 47.
Re8 {[%clk 0:00:23.9]} 47... Kd7 {[%clk 0:00:01.7]} 48. Re7+ {[%clk 0:00:24.2]}
48... Kd8 {[%clk 0:00:02.3]} 49. Bg5 {[%clk 0:00:24.9]} 1-0

[Event "Late-Titled-Tuesday-Blitz-June-04-2024"]
[Site "Chess.com"]
[Date "2024.06.04"]
[Round "5"]
[White "urano56"]
[Black "Alina_Gumerovna"]
[Result "0-1"]
[WhiteElo "2455"]
[BlackElo "2124"]
[TimeControl "180+1"]
[EndTime "14:55:35 PDT"]
[Termination "Alina_Gumerovna won by checkmate"]

1. e4 {[%clk 0:02:59.3]} 1... e5 {[%clk 0:02:59.7]} 2. Nf3 {[%clk 0:02:56.8]}
2... Nf6 {[%clk 0:03:00.2]} 3. Nxe5 {[%clk 0:02:55.2]} 3... Nxe4 {[%clk
0:03:00]} 4. Qe2 {[%clk 0:02:54.5]} 4... Qe7 {[%clk 0:03:00.7]} 5. Qxe4 {[%clk
0:02:54.1]} 5... d6 {[%clk 0:03:01.2]} 6. d4 {[%clk 0:02:54.3]} 6... dxe5 {[%clk
0:03:01.5]} 7. Qxe5 {[%clk 0:02:52.5]} 7... Qxe5+ {[%clk 0:03:01.4]} 8. dxe5
{[%clk 0:02:53.4]} 8... Bf5 {[%clk 0:03:01.8]} 9. Bd3 {[%clk 0:02:50.5]} 9...
Bxd3 {[%clk 0:03:02.4]} 10. cxd3 {[%clk 0:02:50.8]} 10... Nc6 {[%clk 0:03:03.3]}
11. O-O {[%clk 0:02:50.5]} 11... O-O-O {[%clk 0:03:04]} 12. Bf4 {[%clk
0:02:43.4]} 12... Rxd3 {[%clk 0:02:40.2]} 13. Nc3 {[%clk 0:02:43.5]} 13... Bb4
{[%clk 0:02:25]} 14. Rac1 {[%clk 0:02:24.3]} 14... Nd4 {[%clk 0:01:41.3]} 15.
Rfd1 {[%clk 0:02:19.3]} 15... Rxd1+ {[%clk 0:01:41.2]} 16. Rxd1 {[%clk
0:02:18.3]} 16... Bxc3 {[%clk 0:01:41.6]} 17. Be3 {[%clk 0:02:08.8]} 17... Bxb2
{[%clk 0:01:31]} 18. Rd2 {[%clk 0:02:08.1]} 18... Bc3 {[%clk 0:01:00.1]} 19. Rd3
{[%clk 0:02:04]} 19... Rd8 {[%clk 0:00:55.8]} 20. Kf1 {[%clk 0:02:02.5]} 20...
Nb5 {[%clk 0:00:39.1]} 21. Rxd8+ {[%clk 0:01:52]} 21... Kxd8 {[%clk 0:00:40]}
22. f4 {[%clk 0:01:52.2]} 22... Bd4 {[%clk 0:00:33.5]} 23. Bd2 {[%clk
0:01:52.2]} 23... Nc3 {[%clk 0:00:32.8]} 24. a3 {[%clk 0:01:48.6]} 24... Nb1
{[%clk 0:00:28.9]} 25. Bc1 {[%clk 0:01:46.4]} 25... Kd7 {[%clk 0:00:19.4]} 26.
Ke2 {[%clk 0:01:45.1]} 26... Bc5 {[%clk 0:00:18.8]} 27. a4 {[%clk 0:01:44.7]}
27... Nc3+ {[%clk 0:00:18.5]} 28. Kd3 {[%clk 0:01:44]} 28... Nxa4 {[%clk
0:00:19.4]} 29. Kc4 {[%clk 0:01:44.5]} 29... Be7 {[%clk 0:00:13]} 30. g4 {[%clk
0:01:43]} 30... Nb6+ {[%clk 0:00:11.4]} 31. Kd4 {[%clk 0:01:41.1]} 31... a5
{[%clk 0:00:11.3]} 32. f5 {[%clk 0:01:36.9]} 32... a4 {[%clk 0:00:11.6]} 33. g5
{[%clk 0:01:07.5]} 33... a3 {[%clk 0:00:10.9]} 34. h4 {[%clk 0:01:07.5]} 34...
a2 {[%clk 0:00:08.2]} 35. Bb2 {[%clk 0:01:06.9]} 35... Ba3 {[%clk 0:00:08.5]}
36. Ba1 {[%clk 0:01:06]} 36... Na4 {[%clk 0:00:09]} 37. Kc4 {[%clk 0:01:02.5]}
37... Bb2 {[%clk 0:00:05]} 38. f6 {[%clk 0:00:25]} 38... gxf6 {[%clk 0:00:04.7]}
39. Kb3 {[%clk 0:00:21.6]} 39... Bxa1 {[%clk 0:00:04.5]} 40. e6+ {[%clk
0:00:22.1]} 40... Kxe6 {[%clk 0:00:04.3]} 41. Kxa2 {[%clk 0:00:22.6]} 41... Be5
{[%clk 0:00:03.2]} 42. Kb3 {[%clk 0:00:21.7]} 42... Nc5+ {[%clk 0:00:03.8]} 43.
Kc4 {[%clk 0:00:21.8]} 43... fxg5 {[%clk 0:00:04.1]} 44. Kxc5 {[%clk 0:00:21.5]}
44... gxh4 {[%clk 0:00:04.4]} 45. Kc4 {[%clk 0:00:22.2]} 45... h3 {[%clk
0:00:04.9]} 46. Kd3 {[%clk 0:00:23.1]} 46... h2 {[%clk 0:00:05.8]} 47. Ke2
{[%clk 0:00:23.9]} 47... h1=Q {[%clk 0:00:06.7]} 48. Kf2 {[%clk 0:00:24.3]}
48... Qe4 {[%clk 0:00:06.8]} 49. Kg1 {[%clk 0:00:23.8]} 49... Qe2 {[%clk
0:00:03]} 50. Kh1 {[%clk 0:00:23.5]} 50... Qh2# {[%clk 0:00:03.7]} 0-1

[Event "Late-Titled-Tuesday-Blitz-June-04-2024"]
[Site "Chess.com"]
[Date "2024.06.04"]
[Round "5"]
[White "rhwr"]
[Black "BashiqChess"]
[Result "0-1"]
[WhiteElo "2284"]
[BlackElo "2469"]
[TimeControl "180+1"]
[EndTime "14:55:38 PDT"]
[Termination "BashiqChess won by resignation"]

1. e4 {[%clk 0:03:00.9]} 1... c6 {[%clk 0:02:57]} 2. d4 {[%clk 0:02:59.8]} 2...
d5 {[%clk 0:02:57.1]} 3. Nc3 {[%clk 0:02:58.7]} 3... dxe4 {[%clk 0:02:56.4]} 4.
Nxe4 {[%clk 0:02:59.1]} 4... Nf6 {[%clk 0:02:57.3]} 5. Nxf6+ {[%clk 0:02:58.9]}
5... exf6 {[%clk 0:02:58.2]} 6. Nf3 {[%clk 0:02:57.3]} 6... Bd6 {[%clk
0:02:54.9]} 7. Bd3 {[%clk 0:02:57.4]} 7... O-O {[%clk 0:02:54.3]} 8. O-O {[%clk
0:02:57.8]} 8... Bg4 {[%clk 0:02:54.1]} 9. h3 {[%clk 0:02:56.2]} 9... Bh5 {[%clk
0:02:54.3]} 10. c3 {[%clk 0:02:52.5]} 10... Bg6 {[%clk 0:02:53.7]} 11. Bxg6
{[%clk 0:02:45.7]} 11... hxg6 {[%clk 0:02:54.6]} 12. Be3 {[%clk 0:02:43.5]}
12... Re8 {[%clk 0:02:54.6]} 13. Qd2 {[%clk 0:02:42.8]} 13... Nd7 {[%clk
0:02:55]} 14. Bf4 {[%clk 0:02:42.5]} 14... Nf8 {[%clk 0:02:55.1]} 15. Bxd6
{[%clk 0:02:42.1]} 15... Qxd6 {[%clk 0:02:56]} 16. Rae1 {[%clk 0:02:42.1]} 16...
Ne6 {[%clk 0:02:56.6]} 17. Re4 {[%clk 0:02:36.1]} 17... g5 {[%clk 0:02:56]} 18.
Rfe1 {[%clk 0:02:33.7]} 18... Kf8 {[%clk 0:02:45.6]} 19. g3 {[%clk 0:02:32.4]}
19... Nc7 {[%clk 0:02:31.7]} 20. Rxe8+ {[%clk 0:02:30.7]} 20... Rxe8 {[%clk
0:02:32.6]} 21. Rxe8+ {[%clk 0:02:30.4]} 21... Nxe8 {[%clk 0:02:33]} 22. Qe3
{[%clk 0:02:23.4]} 22... Nc7 {[%clk 0:02:26.5]} 23. c4 {[%clk 0:02:14.1]} 23...
Qe6 {[%clk 0:02:07.4]} 24. b3 {[%clk 0:02:09.4]} 24... Qxh3 {[%clk 0:02:03.3]}
25. d5 {[%clk 0:02:04.1]} 25... Qd7 {[%clk 0:01:49.6]} 26. Qc5+ {[%clk
0:01:59.8]} 26... Kg8 {[%clk 0:01:49.4]} 27. Qxa7 {[%clk 0:01:41.5]} 27... cxd5
{[%clk 0:01:49.3]} 28. cxd5 {[%clk 0:01:37.6]} 28... Nxd5 {[%clk 0:01:45.9]} 29.
Nd4 {[%clk 0:01:32.8]} 29... Nc3 {[%clk 0:01:28.6]} 30. a3 {[%clk 0:01:17.3]}
30... Qxd4 {[%clk 0:01:25]} 31. Qxb7 {[%clk 0:01:10.5]} 31... Ne4 {[%clk
0:01:13.9]} 32. Qc8+ {[%clk 0:01:02.1]} 32... Kh7 {[%clk 0:01:13.9]} 33. Qh3+
{[%clk 0:01:01.9]} 33... Kg6 {[%clk 0:01:11.5]} 34. Qf1 {[%clk 0:01:01.5]} 34...
Nd2 {[%clk 0:01:09.4]} 35. Qe2 {[%clk 0:00:56.2]} 35... Qd5 {[%clk 0:01:06.5]}
36. b4 {[%clk 0:00:51.8]} 36... Nf3+ {[%clk 0:01:06.2]} 37. Kf1 {[%clk 0:00:52]}
37... Ne5 {[%clk 0:01:00.4]} 38. Kg1 {[%clk 0:00:51.1]} 38... g4 {[%clk
0:00:43.1]} 39. Qc2+ {[%clk 0:00:43.3]} 39... Kh6 {[%clk 0:00:35.1]} 40. Qc1+
{[%clk 0:00:40.7]} 40... Kh7 {[%clk 0:00:29.8]} 41. a4 {[%clk 0:00:24.5]} 41...
Nf3+ {[%clk 0:00:25.5]} 42. Kf1 {[%clk 0:00:22.3]} 42... Qd3+ {[%clk 0:00:18.7]}
43. Kg2 {[%clk 0:00:20.6]} 43... Qe4 {[%clk 0:00:19]} 44. Kf1 {[%clk 0:00:20.1]}
44... Qxb4 {[%clk 0:00:15.9]} 45. Qc2+ {[%clk 0:00:19]} 45... g6 {[%clk
0:00:15.7]} 46. Qe2 {[%clk 0:00:18.3]} 46... Qxa4 {[%clk 0:00:13.9]} 47. Kg2
{[%clk 0:00:17.1]} 47... Qa8 {[%clk 0:00:12.7]} 48. Kf1 {[%clk 0:00:16.3]} 48...
Qd5 {[%clk 0:00:11.6]} 49. Qc2 {[%clk 0:00:14.9]} 49... Qh5 {[%clk 0:00:10.1]}
50. Ke2 {[%clk 0:00:14.7]} 50... Qe5+ {[%clk 0:00:08.6]} 51. Kf1 {[%clk
0:00:14.5]} 51... Qe1+ {[%clk 0:00:08.6]} 0-1

[Event "Late-Titled-Tuesday-Blitz-June-04-2024"]
[Site "Chess.com"]
[Date "2024.06.04"]
[Round "5"]
[White "luca_va99"]
[Black "Lavandum24"]
[Result "1-0"]
[WhiteElo "2172"]
[BlackElo "1829"]
[TimeControl "180+1"]
[EndTime "14:55:38 PDT"]
[Termination "luca_va99 won on time"]

1. e4 {[%clk 0:02:55.9]} 1... Nc6 {[%clk 0:02:59.8]} 2. d4 {[%clk 0:02:49.1]}
2... e5 {[%clk 0:02:59.4]} 3. Nf3 {[%clk 0:02:47.1]} 3... d6 {[%clk 0:02:56.5]}
4. dxe5 {[%clk 0:02:43.4]} 4... Nxe5 {[%clk 0:02:53.6]} 5. Nxe5 {[%clk
0:02:39.1]} 5... dxe5 {[%clk 0:02:51.3]} 6. Qxd8+ {[%clk 0:02:40]} 6... Kxd8
{[%clk 0:02:51.5]} 7. Bc4 {[%clk 0:02:31.5]} 7... Ke8 {[%clk 0:02:40.3]} 8. Nc3
{[%clk 0:02:28.6]} 8... c6 {[%clk 0:02:33.7]} 9. Bg5 {[%clk 0:02:28.2]} 9... h6
{[%clk 0:02:30.6]} 10. Bh4 {[%clk 0:02:24.8]} 10... Be7 {[%clk 0:02:29.1]} 11.
Bg3 {[%clk 0:02:22.9]} 11... Bd6 {[%clk 0:02:23]} 12. O-O-O {[%clk 0:02:21.7]}
12... Bc7 {[%clk 0:02:22.3]} 13. Bb3 {[%clk 0:02:03.3]} 13... Nf6 {[%clk
0:02:15.4]} 14. f3 {[%clk 0:02:03.3]} 14... Ke7 {[%clk 0:02:02.5]} 15. Bf2
{[%clk 0:02:00.3]} 15... Bd6 {[%clk 0:01:30.5]} 16. Rd2 {[%clk 0:01:49.7]} 16...
Be6 {[%clk 0:01:29.6]} 17. Rhd1 {[%clk 0:01:49.9]} 17... Rhd8 {[%clk 0:01:27.7]}
18. Rxd6 {[%clk 0:01:47.5]} 18... Rxd6 {[%clk 0:01:25.1]} 19. Bc5 {[%clk
0:01:46.9]} 19... Ne8 {[%clk 0:01:17.6]} 20. Bxe6 {[%clk 0:01:43.6]} 20... Kxe6
{[%clk 0:01:15.8]} 21. Bxd6 {[%clk 0:01:41.8]} 21... Nxd6 {[%clk 0:01:14.6]} 22.
Na4 {[%clk 0:01:32.1]} 22... b6 {[%clk 0:01:14.8]} 23. b3 {[%clk 0:01:30.7]}
23... Rd8 {[%clk 0:01:08.1]} 24. Nb2 {[%clk 0:01:25.1]} 24... Rd7 {[%clk
0:01:04.2]} 25. c4 {[%clk 0:01:21.3]} 25... Nb7 {[%clk 0:00:58.8]} 26. Nd3
{[%clk 0:01:20.2]} 26... c5 {[%clk 0:00:49.4]} 27. Kc2 {[%clk 0:01:18.3]} 27...
Nd8 {[%clk 0:00:48.9]} 28. f4 {[%clk 0:01:07.3]} 28... f6 {[%clk 0:00:44.4]} 29.
Rf1 {[%clk 0:00:49.1]} 29... Nc6 {[%clk 0:00:41]} 30. Rf2 {[%clk 0:00:32.5]}
30... Rd4 {[%clk 0:00:29]} 31. fxe5 {[%clk 0:00:14.6]} 31... Nxe5 {[%clk
0:00:28.1]} 32. Nf4+ {[%clk 0:00:14.4]} 32... Kf7 {[%clk 0:00:25.4]} 33. Re2
{[%clk 0:00:13.8]} 33... Ng4 {[%clk 0:00:20.8]} 34. h3 {[%clk 0:00:12.8]} 34...
Ne5 {[%clk 0:00:15.5]} 35. Nd5 {[%clk 0:00:13.4]} 35... Nc6 {[%clk 0:00:14.1]}
36. a3 {[%clk 0:00:13.1]} 36... Ne7 {[%clk 0:00:13.3]} 37. Kc3 {[%clk
0:00:12.3]} 37... Nxd5+ {[%clk 0:00:10.2]} 38. exd5 {[%clk 0:00:13.2]} 38... Rf4
{[%clk 0:00:07.1]} 39. b4 {[%clk 0:00:12.7]} 39... Rd4 {[%clk 0:00:02.8]} 40.
bxc5 {[%clk 0:00:12.6]} 40... bxc5 {[%clk 0:00:03.3]} 41. Rb2 {[%clk 0:00:13.3]}
41... Ke7 {[%clk 0:00:02.7]} 42. Rb7+ {[%clk 0:00:10.5]} 42... Kd6 {[%clk
0:00:01.3]} 43. Rxa7 {[%clk 0:00:09.7]} 43... Rd1 {[%clk 0:00:01]} 44. Rxg7
{[%clk 0:00:09.2]} 44... Rc1+ {[%clk 0:00:01.1]} 45. Kb3 {[%clk 0:00:09.6]} 1-0

[Event "Late-Titled-Tuesday-Blitz-June-04-2024"]
[Site "Chess.com"]
[Date "2024.06.04"]
[Round "5"]
[White "Kiborg95"]
[Black "Oleksandr_Bortnyk"]
[Result "1/2-1/2"]
[WhiteElo "2915"]
[BlackElo "3036"]
[TimeControl "180+1"]
[EndTime "14:55:39 PDT"]
[Termination "Game drawn - insufficient material"]

1. e4 {[%clk 0:03:00]} 1... Nf6 {[%clk 0:02:57.2]} 2. d3 {[%clk 0:02:59.9]} 2...
d5 {[%clk 0:02:57.3]} 3. Nd2 {[%clk 0:02:59.3]} 3... e5 {[%clk 0:02:57.4]} 4.
Ngf3 {[%clk 0:02:59.8]} 4... Nc6 {[%clk 0:02:57.4]} 5. c3 {[%clk 0:03:00.5]}
5... dxe4 {[%clk 0:02:55.7]} 6. dxe4 {[%clk 0:03:00.7]} 6... Bc5 {[%clk
0:02:56]} 7. b4 {[%clk 0:03:00.8]} 7... Bb6 {[%clk 0:02:56.1]} 8. Be2 {[%clk
0:02:52.5]} 8... O-O {[%clk 0:02:53.6]} 9. O-O {[%clk 0:02:53]} 9... a6 {[%clk
0:02:48.1]} 10. a4 {[%clk 0:02:52]} 10... Qe7 {[%clk 0:02:48]} 11. Qc2 {[%clk
0:02:51.9]} 11... Rd8 {[%clk 0:02:47.5]} 12. Nc4 {[%clk 0:02:42.3]} 12... Bg4
{[%clk 0:02:39.8]} 13. Bg5 {[%clk 0:02:33.9]} 13... h6 {[%clk 0:02:36.8]} 14.
Bh4 {[%clk 0:02:27.8]} 14... Bxf3 {[%clk 0:02:21.4]} 15. Bxf3 {[%clk 0:02:28.7]}
15... Qe6 {[%clk 0:02:21.6]} 16. Be2 {[%clk 0:02:22.9]} 16... Rd7 {[%clk
0:02:17.9]} 17. Bg3 {[%clk 0:02:11]} 17... Rad8 {[%clk 0:02:08]} 18. b5 {[%clk
0:02:10.2]} 18... Na5 {[%clk 0:02:08]} 19. Qa2 {[%clk 0:01:27.3]} 19... Nxe4
{[%clk 0:02:04.5]} 20. Nxb6 {[%clk 0:01:22.9]} 20... Qxb6 {[%clk 0:01:59.3]} 21.
Bf3 {[%clk 0:01:01.2]} 21... Rd2 {[%clk 0:01:53.9]} 22. Qb1 {[%clk 0:00:57.1]}
22... Nxg3 {[%clk 0:01:36]} 23. hxg3 {[%clk 0:00:56.3]} 23... g6 {[%clk
0:01:29.7]} 24. Qe4 {[%clk 0:00:52.8]} 24... Qf6 {[%clk 0:01:23.3]} 25. Qb4
{[%clk 0:00:44.8]} 25... Qb6 {[%clk 0:01:18.1]} 26. Rae1 {[%clk 0:00:44.3]}
26... axb5 {[%clk 0:01:15.2]} 27. axb5 {[%clk 0:00:44.5]} 27... c5 {[%clk
0:00:38.6]} 28. bxc6 {[%clk 0:00:44.8]} 28... Qxb4 {[%clk 0:00:39.5]} 29. cxb4
{[%clk 0:00:45.3]} 29... Nxc6 {[%clk 0:00:40.2]} 30. Bxc6 {[%clk 0:00:45.8]}
30... bxc6 {[%clk 0:00:41.1]} 31. Rxe5 {[%clk 0:00:46.3]} 31... Rb2 {[%clk
0:00:40.6]} 32. Rc5 {[%clk 0:00:40.8]} 32... Rd6 {[%clk 0:00:40]} 33. Rfc1
{[%clk 0:00:41.4]} 33... Rdd2 {[%clk 0:00:32.1]} 34. Rf1 {[%clk 0:00:41.7]}
34... Rxb4 {[%clk 0:00:32.5]} 35. Rxc6 {[%clk 0:00:42]} 35... Rbb2 {[%clk
0:00:33.2]} 36. Rc3 {[%clk 0:00:34.5]} 36... h5 {[%clk 0:00:33.5]} 37. Rf3
{[%clk 0:00:32.6]} 37... Kg7 {[%clk 0:00:34]} 38. Re1 {[%clk 0:00:32.7]} 38...
Re2 {[%clk 0:00:34.3]} 39. Rxe2 {[%clk 0:00:32.9]} 39... Rxe2 {[%clk 0:00:35.2]}
40. Kf1 {[%clk 0:00:33.7]} 40... Ra2 {[%clk 0:00:35.5]} 41. Re3 {[%clk
0:00:33.8]} 41... f5 {[%clk 0:00:35.8]} 42. Rb3 {[%clk 0:00:33.2]} 42... Kf6
{[%clk 0:00:36]} 43. Rb4 {[%clk 0:00:32.7]} 43... Kg5 {[%clk 0:00:36.2]} 44. f3
{[%clk 0:00:31.9]} 44... Rc2 {[%clk 0:00:35.7]} 45. Kg1 {[%clk 0:00:32.4]} 45...
Kf6 {[%clk 0:00:33.3]} 46. Kf1 {[%clk 0:00:32.8]} 46... Rc6 {[%clk 0:00:33.2]}
47. Kf2 {[%clk 0:00:33.2]} 47... Ke5 {[%clk 0:00:33.8]} 48. Ra4 {[%clk
0:00:32.5]} 48... Rc2+ {[%clk 0:00:33.5]} 49. Kg1 {[%clk 0:00:32.4]} 49... Rd2
{[%clk 0:00:34.2]} 50. Ra6 {[%clk 0:00:31.5]} 50... Rd6 {[%clk 0:00:34.1]} 51.
Ra8 {[%clk 0:00:29.6]} 51... Kd4 {[%clk 0:00:31.1]} 52. Kf2 {[%clk 0:00:29.8]}
52... Rb6 {[%clk 0:00:28.2]} 53. Rd8+ {[%clk 0:00:30.1]} 53... Ke5 {[%clk
0:00:28.7]} 54. Re8+ {[%clk 0:00:30.4]} 54... Kf6 {[%clk 0:00:29.4]} 55. Re2
{[%clk 0:00:30.7]} 55... Kg5 {[%clk 0:00:29.7]} 56. Rc2 {[%clk 0:00:31]} 56...
h4 {[%clk 0:00:30.2]} 57. gxh4+ {[%clk 0:00:31.4]} 57... Kxh4 {[%clk 0:00:31.1]}
58. Rc4+ {[%clk 0:00:31.9]} 58... Kg5 {[%clk 0:00:31.8]} 59. Kg3 {[%clk
0:00:32.4]} 59... Rb2 {[%clk 0:00:30.1]} 60. Ra4 {[%clk 0:00:32.7]} 60... Rc2
{[%clk 0:00:28.3]} 61. Rb4 {[%clk 0:00:33]} 61... Rc8 {[%clk 0:00:27.2]} 62. Ra4
{[%clk 0:00:33.2]} 62... Rf8 {[%clk 0:00:27.6]} 63. Ra6 {[%clk 0:00:32.9]} 63...
f4+ {[%clk 0:00:27.5]} 64. Kf2 {[%clk 0:00:33.5]} 64... Rc8 {[%clk 0:00:27.7]}
65. Ra2 {[%clk 0:00:34]} 65... Rd8 {[%clk 0:00:26.4]} 66. Kg1 {[%clk 0:00:33]}
66... Kh4 {[%clk 0:00:24.6]} 67. Kh2 {[%clk 0:00:32]} 67... Rh8 {[%clk
0:00:24.8]} 68. Ra5 {[%clk 0:00:31.9]} 68... Rh5 {[%clk 0:00:24.4]} 69. Rxh5+
{[%clk 0:00:28.5]} 69... gxh5 {[%clk 0:00:24.5]} 70. g3+ {[%clk 0:00:29]} 70...
fxg3+ {[%clk 0:00:23.2]} 71. Kg2 {[%clk 0:00:29.7]} 71... Kg5 {[%clk 0:00:23.7]}
72. Kxg3 {[%clk 0:00:30.3]} 72... h4+ {[%clk 0:00:24.6]} 73. Kh3 {[%clk
0:00:30.8]} 73... Kf4 {[%clk 0:00:25.5]} 74. Kxh4 {[%clk 0:00:31.6]} 74... Kxf3
{[%clk 0:00:26.4]} 1/2-1/2

[Event "Late-Titled-Tuesday-Blitz-June-04-2024"]
[Site "Chess.com"]
[Date "2024.06.04"]
[Round "5"]
[White "familijatop71"]
[Black "szachmistrz2500"]
[Result "0-1"]
[WhiteElo "2291"]
[BlackElo "2495"]
[TimeControl "180+1"]
[EndTime "14:55:39 PDT"]
[Termination "szachmistrz2500 won on time"]

1. e4 {[%clk 0:03:00.9]} 1... c5 {[%clk 0:02:58.6]} 2. c3 {[%clk 0:03:00.8]}
2... Nf6 {[%clk 0:02:57.6]} 3. e5 {[%clk 0:03:01]} 3... Nd5 {[%clk 0:02:57]} 4.
Nf3 {[%clk 0:03:01.6]} 4... Nc6 {[%clk 0:02:56]} 5. d4 {[%clk 0:03:01.6]} 5...
cxd4 {[%clk 0:02:55.6]} 6. Bc4 {[%clk 0:03:00.6]} 6... Nb6 {[%clk 0:02:51.4]} 7.
Bb3 {[%clk 0:03:00.6]} 7... d5 {[%clk 0:02:50.9]} 8. exd6 {[%clk 0:03:00.3]}
8... Qxd6 {[%clk 0:02:50.4]} 9. O-O {[%clk 0:03:00.9]} 9... Bf5 {[%clk
0:02:40.9]} 10. Nxd4 {[%clk 0:02:59.6]} 10... Nxd4 {[%clk 0:02:40.2]} 11. cxd4
{[%clk 0:03:00.5]} 11... e6 {[%clk 0:02:38.4]} 12. Nc3 {[%clk 0:03:00.6]} 12...
Be7 {[%clk 0:02:37.2]} 13. Qf3 {[%clk 0:03:00.5]} 13... O-O {[%clk 0:02:31.8]}
14. Rd1 {[%clk 0:02:50.2]} 14... Qd7 {[%clk 0:02:24.6]} 15. d5 {[%clk
0:02:49.2]} 15... e5 {[%clk 0:02:18.6]} 16. h3 {[%clk 0:02:31.5]} 16... Bd6
{[%clk 0:02:16]} 17. Ne4 {[%clk 0:02:22]} 17... Bxe4 {[%clk 0:02:12]} 18. Qxe4
{[%clk 0:02:21.5]} 18... f5 {[%clk 0:02:11.8]} 19. Qh4 {[%clk 0:02:06.8]} 19...
Nc8 {[%clk 0:01:49.4]} 20. Be3 {[%clk 0:01:51.8]} 20... Ne7 {[%clk 0:01:48.7]}
21. Rac1 {[%clk 0:01:44.4]} 21... f4 {[%clk 0:01:46.2]} 22. Bc5 {[%clk
0:01:32.9]} 22... Nf5 {[%clk 0:01:46]} 23. Qg4 {[%clk 0:01:23.8]} 23... Rad8
{[%clk 0:01:36.2]} 24. Bxa7 {[%clk 0:01:08.2]} 24... e4 {[%clk 0:01:34.2]} 25.
Bc2 {[%clk 0:00:44.2]} 25... Rde8 {[%clk 0:01:25.2]} 26. Re1 {[%clk 0:00:23.3]}
26... b5 {[%clk 0:00:37.7]} 27. Bxe4 {[%clk 0:00:21.8]} 27... Re5 {[%clk
0:00:24.3]} 28. Bxf5 {[%clk 0:00:15.7]} 28... Rexf5 {[%clk 0:00:22.2]} 29. Bc5
{[%clk 0:00:15.3]} 29... h6 {[%clk 0:00:16]} 30. Bxd6 {[%clk 0:00:15.5]} 30...
Qxd6 {[%clk 0:00:16.3]} 31. Red1 {[%clk 0:00:11.8]} 31... Rxd5 {[%clk
0:00:14.9]} 32. Rxd5 {[%clk 0:00:11.9]} 32... Qxd5 {[%clk 0:00:15.8]} 33. Rd1
{[%clk 0:00:12.2]} 33... Qxa2 {[%clk 0:00:15.3]} 34. Qe2 {[%clk 0:00:12.1]}
34... Qb3 {[%clk 0:00:13.3]} 35. f3 {[%clk 0:00:12]} 35... Kh7 {[%clk
0:00:11.6]} 36. Rd3 {[%clk 0:00:11.8]} 36... Qc4 {[%clk 0:00:11]} 37. Qe4+
{[%clk 0:00:06.8]} 37... Qxe4 {[%clk 0:00:10.9]} 38. fxe4 {[%clk 0:00:07.7]}
38... Re8 {[%clk 0:00:11.3]} 39. Rd4 {[%clk 0:00:07.8]} 39... Kg6 {[%clk
0:00:09.5]} 40. Kf2 {[%clk 0:00:08.3]} 40... Kf6 {[%clk 0:00:09.3]} 41. Kf3
{[%clk 0:00:08.7]} 41... g5 {[%clk 0:00:09]} 42. Rd6+ {[%clk 0:00:08.4]} 42...
Re6 {[%clk 0:00:08.4]} 43. Rxe6+ {[%clk 0:00:05.9]} 43... Kxe6 {[%clk
0:00:08.7]} 44. g3 {[%clk 0:00:03.4]} 44... fxg3 {[%clk 0:00:07.4]} 45. Kxg3
{[%clk 0:00:02.7]} 45... h5 {[%clk 0:00:07.6]} 46. Kf3 {[%clk 0:00:02.8]} 46...
Ke5 {[%clk 0:00:07.9]} 47. Ke3 {[%clk 0:00:03.1]} 47... g4 {[%clk 0:00:07.7]}
48. hxg4 {[%clk 0:00:03.3]} 48... hxg4 {[%clk 0:00:08]} 49. b3 {[%clk
0:00:03.6]} 49... b4 {[%clk 0:00:07.4]} 0-1